bitfinex/quotes_BTCUSD_20240906
["timestamp","ask_amount","ask_price","bid_price","bid_amount"]
[1725649185773,2.42646558,53553.0,53548.0,4e-05]
[1725649185774,2.42646558,53553.0,53531.0,0.199241]
[1725649185775,0.01,53536.0,53531.0,0.199241]
[1725649186026,0.66807445,53532.0,53531.0,0.199241]
[1725649186254,1.74732998,53532.0,53531.0,0.124517]
[1725649186473,2.54052292,53532.0,53531.0,0.124517]
[1725649186687,2.28574243,53532.0,53531.0,0.124517]
[1725649186912,2.28574243,53532.0,53531.0,0.05820995]
[1725649186913,2.89120925,53532.0,53531.0,0.05820995]
[1725649187122,3.03994718,53532.0,53531.0,0.05920995]
[1725649187358,2.73655765,53532.0,53531.0,0.05920995]
[1725649187647,2.062667,53531.0,53530.0,0.462638]
[1725649187865,2.062667,53531.0,53514.0,0.0862269]
[1725649187866,0.934315,53515.0,53514.0,0.0862269]
[1725649188078,1.54025771,53515.0,53514.0,0.0862269]
[1725649188346,1.43050934,53515.0,53514.0,0.0862269]
[1725649188573,1.80423534,53515.0,53514.0,0.0862269]
[1725649188818,0.12246834,53515.0,53511.0,0.00164]
[1725649189072,0.95709723,53512.0,53511.0,0.00164]
[1725649189321,1.05209723,53512.0,53511.0,0.00164]
[1725649189548,1.42584423,53512.0,53511.0,0.00164]
[1725649190864,0.12273023,53512.0,53511.0,0.51114]
[1725649191121,0.02273023,53512.0,53511.0,0.53314]
[1725649191359,0.02273023,53512.0,53511.0,0.5867378]
[1725649191563,0.20960323,53512.0,53511.0,0.5867378]
[1725649191785,0.03373023,53512.0,53511.0,0.5867378]
[1725649192212,0.02273023,53512.0,53511.0,0.5867378]
[1725649193107,0.02273023,53512.0,53511.0,0.6097378]
[1725649193320,0.02373023,53512.0,53511.0,0.6097378]
[1725649194263,0.21060323,53512.0,53511.0,0.00164]
[1725649194480,0.95809723,53512.0,53511.0,0.00164]
[1725649194720,1.43184423,53512.0,53511.0,0.00164]
[1725649195145,1.43084423,53512.0,53511.0,0.00164]
[1725649195414,1.43184423,53512.0,53511.0,0.00164]
[1725649196050,2.13889123,53512.0,53511.0,0.00164]
[1725649196260,2.14589123,53512.0,53511.0,0.00164]
[1725649196949,2.13889123,53512.0,53511.0,0.00164]
[1725649198367,2.13889123,53512.0,53502.0,0.502617]
[1725649198368,0.3319,53511.0,53502.0,0.502617]
[1725649198592,0.95830297,53503.0,53502.0,0.502617]
[1725649198822,1.80592297,53503.0,53502.0,0.502617]
[1725649199077,1.80592297,53503.0,53502.0,0.497617]
[1725649199517,2.20898433,53503.0,53502.0,0.497617]
[1725649199769,2.34708433,53503.0,53502.0,0.497617]
[1725649199980,2.36108433,53503.0,53502.0,0.497617]
[1725649200219,2.36108433,53503.0,53502.0,0.496217]
[1725649200676,2.68198433,53503.0,53502.0,0.496217]
[1725649200897,3.25871972,53503.0,53502.0,0.309307]
[1725649201135,2.30817481,53503.0,53502.0,0.304307]
[1725649201354,0.58449297,53503.0,53502.0,0.304307]
[1725649201589,0.03777797,53503.0,53502.0,0.650907]
[1725649201955,0.03777797,53503.0,53502.0,0.652907]
[1725649202185,0.1381,53520.0,53502.0,0.652907]
[1725649202186,0.373634,53529.0,53512.0,0.03]
[1725649202411,0.373634,53529.0,53520.0,0.012]
[1725649202615,0.55430836,53540.0,53522.0,0.01]
[1725649202845,0.186787,53537.0,53529.0,0.006]
[1725649203123,0.1868,53533.0,53532.0,0.006]
[1725649203395,0.373452,53555.0,53531.0,0.3366]
[1725649203396,0.01318815,53540.0,53538.0,0.006]
[1725649203621,0.373531,53543.0,53530.0,0.1897]
[1725649203622,0.560296,53543.0,53542.0,0.008]
[1725649203839,0.560296,53543.0,53542.0,0.006]
[1725649203840,0.186765,53543.0,53542.0,0.006]
[1725649204088,0.186765,53543.0,53542.0,0.04446]
[1725649204328,0.000815,53557.0,53542.0,0.04446]
[1725649204329,0.000815,53557.0,53546.0,0.01]
[1725649204575,0.000815,53557.0,53542.0,0.03846]
[1725649204576,0.933713,53550.0,53549.0,0.026]
[1725649204790,0.187546,53553.0,53552.0,0.3322]
[1725649205019,0.000816,53553.0,53552.0,0.38762]
[1725649205475,0.000816,53553.0,53552.0,0.38962]
[1725649205706,0.000816,53553.0,53552.0,0.41262]
[1725649206359,0.000816,53553.0,53552.0,0.3522]
[1725649206600,0.188546,53553.0,53552.0,0.3622]
[1725649206816,0.001816,53553.0,53552.0,0.3852]
[1725649207024,0.000816,53553.0,53552.0,0.3772]
[1725649207239,0.000816,53553.0,53552.0,0.3522]
[1725649207240,0.561007,53553.0,53552.0,0.3522]
[1725649207450,0.935468,53553.0,53552.0,0.3322]
[1725649207660,0.935468,53553.0,53552.0,0.006]
[1725649207661,1.308929,53553.0,53552.0,0.006]
[1725649208144,0.562007,53553.0,53552.0,0.012]
[1725649208371,0.562007,53553.0,53552.0,0.006]
[1725649208372,0.662007,53553.0,53552.0,0.006]
[1725649208614,1.408929,53553.0,53552.0,0.006]
[1725649209485,0.288546,53553.0,53552.0,0.3473]
[1725649209739,0.001816,53553.0,53552.0,0.5574]
[1725649209961,0.001816,53553.0,53552.0,0.5514]
[1725649209962,0.000816,53553.0,53552.0,0.5514]
[1725649210608,0.000815,53557.0,53556.0,0.3673]
[1725649210817,0.187531,53557.0,53556.0,0.42474]
[1725649211262,0.187531,53557.0,53556.0,0.3513]
[1725649211263,0.560964,53557.0,53556.0,0.3513]
[1725649211473,0.929397,53557.0,53556.0,0.3573]
[1725649211702,0.929397,53557.0,53556.0,0.3413]
[1725649211921,0.929397,53557.0,53556.0,0.3513]
[1725649212623,0.933652,53553.0,53552.0,0.008]
[1725649213047,0.560233,53549.0,53548.0,0.01]
[1725649213288,0.186744,53549.0,53548.0,0.06113]
[1725649213492,0.473474,53552.0,53551.0,0.006]
[1725649213493,0.1,53552.0,53551.0,0.006]
[1725649213703,0.281734,53552.0,53551.0,0.006]
[1725649214332,0.095,53552.0,53551.0,0.028]
[1725649214523,0.095,53552.0,53551.0,0.5483]
[1725649214782,0.560202,53552.0,53551.0,0.06366969]
[1725649215000,0.1389,53557.0,53538.0,0.01]
[1725649215259,0.1389,53557.0,53534.0,0.346]
[1725649215260,0.186793,53535.0,53534.0,0.346]
[1725649215518,0.56038,53535.0,53534.0,0.336]
[1725649215751,0.1868,53533.0,53532.0,0.1998]
[1725649215990,0.1,53535.0,53534.0,0.01]
[1725649215991,0.286793,53535.0,53534.0,0.01]
[1725649216238,0.1,53535.0,53534.0,0.026]
[1725649216477,0.3593,53559.0,53551.0,0.005]
[1725649216775,0.61959147,53566.0,53551.0,0.005]
[1725649216776,0.74104236,53552.0,53551.0,0.005]
[1725649216985,0.933775,53546.0,53545.0,0.01]
[1725649217228,0.933845,53542.0,53541.0,0.1974]
[1725649217483,0.560307,53542.0,53541.0,0.1974]
[1725649217734,0.660307,53542.0,53541.0,0.1974]
[1725649218005,1.033845,53542.0,53541.0,0.1874]
[1725649218240,1.033845,53542.0,53534.0,0.01]
[1725649218241,0.185993,53535.0,53534.0,0.01]
[1725649218496,0.185993,53535.0,53532.0,0.3617]
[1725649218497,0.560401,53533.0,53532.0,0.3617]
[1725649218728,0.560401,53533.0,53529.0,0.01]
[1725649218729,0.373608,53532.0,53529.0,0.01]
[1725649219003,0.373608,53532.0,53526.0,0.3617]
[1725649219004,0.373622,53530.0,53526.0,0.3617]
[1725649219247,0.1,53532.0,53521.0,0.026]
[1725649219248,0.1,53532.0,53521.0,0.3912]
[1725649219513,0.934195,53522.0,53521.0,0.3912]
[1725649219769,0.560517,53522.0,53521.0,0.3912]
[1725649219989,0.1,53532.0,53521.0,0.3912]
[1725649219990,0.373617,53531.0,53523.0,0.01]
[1725649220225,0.1,53532.0,53523.0,0.01]
[1725649220226,0.18682,53528.0,53525.0,0.006]
[1725649220495,0.373678,53522.0,53521.0,0.3912]
[1725649220731,0.373678,53522.0,53521.0,0.3822]
[1725649220732,1.034195,53522.0,53521.0,0.3822]
[1725649221006,1.407873,53522.0,53521.0,0.001]
[1725649221241,1.407873,53522.0,53501.0,0.01324]
[1725649221242,0.1,53522.0,53516.0,0.006]
[1725649221478,0.1,53522.0,53515.0,0.02]
[1725649221479,0.1,53521.0,53520.0,0.002]
[1725649221726,0.1,53521.0,53518.0,0.006]
[1725649221991,0.1,53521.0,53520.0,0.002]
[1725649221992,0.286842,53521.0,53520.0,0.002]
[1725649222217,0.006,53531.0,53529.0,0.006]
[1725649222480,0.006,53531.0,53530.0,0.3872]
[1725649222721,0.1868,53533.0,53532.0,0.006]
[1725649222949,0.186807,53531.0,53530.0,0.3812]
[1725649223192,0.186807,53531.0,53530.0,0.42812]
[1725649223410,0.373588,53535.0,53530.0,0.42812]
[1725649223674,0.373534,53543.0,53533.0,0.01]
[1725649223675,0.1,53534.0,53533.0,0.01]
[1725649223903,0.373489,53550.0,53533.0,0.01]
[1725649223904,0.55430836,53556.0,53541.0,0.006]
[1725649224114,0.55430836,53556.0,53537.0,0.3585]
[1725649224115,0.186783,53538.0,53537.0,0.3585]
[1725649224346,0.55430836,53556.0,53521.0,0.00163]
[1725649224347,0.560433,53530.0,53529.0,0.3729]
[1725649224601,0.934055,53530.0,53529.0,0.3529]
[1725649224813,0.560433,53530.0,53529.0,0.42817]
[1725649225250,0.373603,53533.0,53523.0,0.3469]
[1725649225472,0.560496,53524.0,53523.0,0.01]
[1725649225678,0.560496,53524.0,53521.0,0.19943]
[1725649225679,0.560496,53524.0,53521.0,0.00163]
[1725649225680,0.186839,53522.0,53521.0,0.00163]
[1725649225900,0.934195,53522.0,53521.0,0.00163]
[1725649226112,1.407873,53522.0,53521.0,0.00163]
[1725649226368,0.660517,53522.0,53521.0,0.35113]
[1725649226588,1.034195,53522.0,53521.0,0.35113]
[1725649226846,0.373554,53540.0,53521.0,0.35113]
[1725649226848,0.05542446,53552.0,53526.0,0.016]
[1725649227092,0.05542446,53552.0,53551.0,0.016]
[1725649227093,0.000815,53552.0,53551.0,0.016]
[1725649227266,0.000815,53552.0,53551.0,0.5572]
[1725649227487,0.000815,53552.0,53551.0,0.766937]
[1725649227731,0.000815,53552.0,53551.0,0.5572]
[1725649228445,0.000815,53552.0,53547.0,0.18675]
[1725649228446,0.03889456,53552.0,53547.0,0.014]
[1725649228670,0.000815,53552.0,53547.0,0.014]
[1725649228889,0.000815,53552.0,53551.0,0.3855]
[1725649229321,0.000815,53552.0,53551.0,0.385]
[1725649229774,0.000815,53552.0,53551.0,0.398]
[1725649230029,0.000815,53552.0,53551.0,0.3945]
[1725649230273,0.000815,53552.0,53551.0,0.3815]
[1725649230486,0.000815,53552.0,53551.0,0.435]
[1725649230923,0.000815,53552.0,53551.0,0.437]
[1725649231141,0.000815,53552.0,53551.0,0.427]
[1725649231407,0.000815,53552.0,53551.0,0.441]
[1725649231648,0.000815,53552.0,53551.0,1.596587]
[1725649231915,0.000815,53552.0,53551.0,0.6629]
[1725649232170,0.000815,53552.0,53551.0,0.6399]
[1725649232637,0.000815,53552.0,53551.0,0.812637]
[1725649232890,0.000815,53552.0,53551.0,0.6399]
[1725649233148,0.000815,53552.0,53551.0,0.826637]
[1725649233381,0.000815,53552.0,53551.0,0.6259]
[1725649233860,0.100815,53566.0,53564.0,0.0135]
[1725649233861,0.55430836,53565.0,53564.0,0.0135]
[1725649234120,0.000815,53566.0,53564.0,0.0135]
[1725649234121,0.000815,53566.0,53565.0,0.598567]
[1725649234390,0.000815,53566.0,53565.0,1.4593117]
[1725649234622,0.000815,53566.0,53565.0,1.0859337]
[1725649234839,0.000815,53566.0,53565.0,1.4593117]
[1725649235100,0.000815,53566.0,53565.0,1.0859337]
[1725649235650,0.000815,53566.0,53565.0,1.6394117]
[1725649235906,0.000815,53574.0,53573.0,1.322127]
[1725649236136,0.000815,53574.0,53573.0,1.9780167]
[1725649236403,0.000815,53574.0,53573.0,3.2533167]
[1725649236654,0.000815,53574.0,53573.0,3.30566103]
[1725649236895,0.000815,53589.0,53573.0,3.30566103]
[1725649236896,0.000815,53589.0,53588.0,0.753208]
[1725649237106,0.000815,53589.0,53588.0,1.522642]
[1725649237329,0.000815,53589.0,53588.0,1.558355]
[1725649237552,0.000815,53589.0,53588.0,2.16991134]
[1725649237757,0.00082,53603.0,53597.0,1.513587]
[1725649237983,0.00082,53603.0,53597.0,2.14608134]
[1725649238269,0.00082,53603.0,53602.0,1.89912]
[1725649238534,0.55430836,53625.0,53619.0,0.569503]
[1725649238761,0.55430836,53625.0,53619.0,1.353605]
[1725649238988,0.000815,53641.0,53619.0,1.353605]
[1725649238989,0.000815,53641.0,53619.0,1.548705]
[1725649239196,0.000815,53641.0,53619.0,1.97361809]
[1725649239435,0.00066525,53620.0,53619.0,1.175703]
[1725649239661,0.00066525,53620.0,53619.0,0.7083667]
[1725649239873,0.18716225,53620.0,53619.0,0.0035]
[1725649240391,0.18716225,53620.0,53612.0,0.0035]
[1725649240392,0.01886023,53620.0,53612.0,0.0035]
[1725649240631,0.01886023,53620.0,53619.0,0.012]
[1725649240632,0.39185523,53620.0,53619.0,0.012]
[1725649240867,1.71320095,53620.0,53619.0,0.012]
[1725649241095,1.71320095,53620.0,53606.0,0.0035]
[1725649241096,0.186542,53607.0,53606.0,0.0035]
[1725649241337,0.1,53607.0,53606.0,0.0035]
[1725649241588,0.1,53607.0,53606.0,0.0135]
[1725649241848,0.1,53607.0,53599.0,0.0135]
[1725649242112,0.36206525,53620.0,53585.0,0.0035]
[1725649242113,0.186616,53586.0,53585.0,0.0035]
[1725649242357,0.186616,53586.0,53582.0,0.3709]
[1725649242358,0.606,53606.0,53590.0,0.0035]
[1725649242575,0.606,53606.0,53593.0,0.0135]
[1725649242804,0.186595,53592.0,53591.0,0.0155]
[1725649243032,0.186601,53590.0,53589.0,0.0135]
[1725649243258,0.186601,53590.0,53575.0,0.3709]
[1725649243259,0.0659791,53590.0,53575.0,0.3709]
[1725649243485,0.1,53591.0,53566.0,0.3844]
[1725649243486,0.606,53589.0,53566.0,0.3844]
[1725649243738,0.186678,53569.0,53566.0,0.3709]
[1725649243962,0.186675,53569.0,53568.0,0.0035]
[1725649244227,0.1,53588.0,53576.0,0.0035]
[1725649244438,0.186639,53580.0,53576.0,0.0035]
[1725649244744,0.5192,53578.0,53558.0,0.4697]
[1725649244966,0.5192,53578.0,53544.0,0.01163]
[1725649244967,0.5192,53578.0,53544.0,0.00163]
[1725649244969,0.186758,53545.0,53544.0,0.00163]
[1725649245431,0.47266755,53545.0,53544.0,0.01163]
[1725649245666,0.3746,53565.0,53553.0,0.012]
[1725649245667,0.186727,53554.0,53553.0,0.012]
[1725649245876,0.3746,53565.0,53547.0,0.01]
[1725649246134,0.3746,53565.0,53544.0,0.00163]
[1725649246135,0.1,53564.0,53553.0,0.01]
[1725649246350,0.1,53564.0,53559.0,0.01]
[1725649246565,0.01263344,53584.0,53570.0,0.01]
[1725649246774,0.01263344,53584.0,53553.0,0.5715]
[1725649246775,0.37266755,53580.0,53577.0,0.01]
[1725649247205,0.37266755,53580.0,53571.0,0.3734]
[1725649247206,0.373245,53585.0,53573.0,0.01]
[1725649247465,0.373245,53585.0,53576.0,0.01]
[1725649247683,0.3474,53596.0,53580.0,0.01]
[1725649247895,0.3474,53596.0,53575.0,0.1998]
[1725649247896,0.3474,53596.0,53581.0,0.01]
[1725649248110,0.373229,53587.0,53582.0,0.01]
[1725649248556,0.186626,53583.0,53582.0,0.01]
[1725649248827,0.373252,53583.0,53580.0,0.01]
[1725649249048,0.373169,53595.0,53568.0,0.01]
[1725649249049,0.186675,53569.0,53568.0,0.01]
[1725649249266,0.01,53593.0,53562.0,0.186]
[1725649249267,0.1446,53577.0,53563.0,0.01]
[1725649249488,0.1446,53577.0,53562.0,0.186]
[1725649249489,0.1446,53577.0,53562.0,0.196]
[1725649249700,0.186672,53570.0,53567.0,0.01]
[1725649249910,0.1,53576.0,53567.0,0.01]
[1725649250125,0.1,53576.0,53570.0,0.01]
[1725649250126,0.473302,53576.0,53570.0,0.01]
[1725649250340,0.1,53576.0,53573.0,0.002]
[1725649250557,0.28665,53576.0,53575.0,0.01]
[1725649250767,0.559951,53576.0,53575.0,0.01]
[1725649251212,0.373258,53583.0,53576.0,0.01]
[1725649251426,0.55992,53579.0,53578.0,0.01]
[1725649252109,0.559993,53572.0,53571.0,0.3764]
[1725649252333,0.559993,53572.0,53571.0,0.3864]
[1725649252582,0.659993,53572.0,53571.0,0.3864]
[1725649252808,0.1,53572.0,53571.0,0.3864]
[1725649253046,0.186635,53581.0,53579.0,0.01]
[1725649253252,0.000815,53585.0,53583.0,0.01]
[1725649253472,0.187435,53585.0,53583.0,0.01]
[1725649253687,0.187435,53585.0,53580.0,0.01]
[1725649253688,0.000815,53585.0,53580.0,0.01]
[1725649253899,0.933165,53581.0,53580.0,0.01]
[1725649254108,0.373245,53584.0,53571.0,0.41524]
[1725649254109,0.18664,53579.0,53578.0,0.01]
[1725649254759,0.28664,53579.0,53578.0,0.012]
[1725649254973,0.1,53579.0,53578.0,0.012]
[1725649255605,0.1,53579.0,53578.0,0.5823]
[1725649255846,0.010815,53585.0,53583.0,0.012]
[1725649256271,0.187434,53585.0,53584.0,0.01]
[1725649256471,0.660672,53585.0,53584.0,0.01]
[1725649256736,0.000815,53585.0,53584.0,0.012]
[1725649257415,0.000815,53585.0,53583.0,0.001]
[1725649257631,0.559867,53584.0,53583.0,0.011]
[1725649257843,0.186622,53584.0,53583.0,0.011]
[1725649258282,0.933112,53584.0,53583.0,0.001]
[1725649258535,0.559899,53581.0,53580.0,0.01]
[1725649258745,0.286633,53581.0,53580.0,0.074053]
[1725649259026,0.1,53581.0,53580.0,0.076053]
[1725649259975,0.006,53584.0,53581.0,0.002]
[1725649259976,0.1,53584.0,53581.0,0.002]
[1725649260188,0.186629,53582.0,53581.0,0.002]
[1725649260430,0.72815975,53605.0,53583.0,0.385252]
[1725649260648,0.72815975,53605.0,53596.0,0.01]
[1725649260649,0.559732,53597.0,53596.0,0.01]
[1725649260885,0.01293265,53615.0,53601.0,0.01]
[1725649261106,0.01293265,53615.0,53605.0,0.01]
[1725649261107,0.186546,53606.0,53605.0,0.01]
[1725649261325,0.92020836,53619.0,53605.0,0.01]
[1725649261326,0.186541,53608.0,53605.0,0.01]
[1725649261562,0.02016928,53620.0,53609.0,0.3523]
[1725649261563,0.186512,53616.0,53609.0,0.3523]
[1725649261788,0.00066525,53620.0,53619.0,0.01]
[1725649262013,0.00066525,53620.0,53619.0,0.5533]
[1725649262443,0.00066525,53620.0,53619.0,1.135803]
[1725649262664,0.00066525,53620.0,53619.0,1.881807]
[1725649262928,0.00066525,53620.0,53619.0,1.93242595]
[1725649263149,0.00082,53636.0,53627.0,1.107119]
[1725649263372,0.00082,53636.0,53627.0,0.757173]
[1725649263844,0.00082,53636.0,53627.0,0.5707]
[1725649264049,0.61292194,53628.0,53627.0,0.01]
[1725649264267,0.61292194,53628.0,53617.0,0.01]
[1725649264268,0.745976,53621.0,53617.0,0.01]
[1725649264490,0.745976,53621.0,53615.0,0.01]
[1725649264491,0.559533,53616.0,53615.0,0.01]
[1725649264727,0.373018,53617.0,53616.0,0.01]
[1725649264962,0.932642,53611.0,53607.0,0.01]
[1725649265200,0.932642,53611.0,53596.0,0.1959]
[1725649265201,0.373057,53611.0,53604.0,0.01]
[1725649265467,0.186525,53612.0,53611.0,0.01]
[1725649265705,0.186525,53612.0,53609.0,0.002]
[1725649265706,0.1,53616.0,53615.0,0.01]
[1725649265921,0.02923747,53634.0,53627.0,0.01]
[1725649265922,0.187289,53628.0,53627.0,0.01]
[1725649266142,0.00082,53628.0,53627.0,0.01]
[1725649266361,0.00082,53628.0,53627.0,0.012]
[1725649266582,0.00082,53628.0,53627.0,0.96754273]
[1725649266806,0.00082,53628.0,53627.0,1.55998873]
[1725649267024,0.00082,53628.0,53627.0,1.55626]
[1725649267264,0.00082,53628.0,53627.0,1.183314]
[1725649267484,0.00082,53628.0,53627.0,1.55626]
[1725649267724,0.00082,53639.0,53635.0,0.950235]
[1725649267941,0.00082,53639.0,53635.0,0.5089235]
[1725649268154,0.00082,53639.0,53635.0,0.600345]
[1725649268368,0.00082,53639.0,53635.0,0.4139]
[1725649268803,0.00082,53639.0,53635.0,0.3909]
[1725649269048,0.00082,53639.0,53635.0,0.3889]
[1725649269492,0.18644,53637.0,53635.0,0.3889]
[1725649269709,0.00082,53639.0,53635.0,0.4009]
[1725649269928,0.186438,53637.0,53635.0,0.44119]
[1725649270146,0.10082,53639.0,53635.0,0.44119]
[1725649270362,0.00082,53639.0,53635.0,0.45219]
[1725649270617,0.00082,53639.0,53635.0,0.45919]
[1725649271275,0.00082,53639.0,53638.0,1.317872]
[1725649271495,0.00082,53643.0,53638.0,1.317872]
[1725649271496,0.00082,53643.0,53640.0,0.571284]
[1725649271709,0.00082,53643.0,53642.0,1.872647]
[1725649271938,0.00082,53643.0,53642.0,2.45324139]
[1725649272149,0.00082,53643.0,53642.0,2.1295859]
[1725649272361,0.00082,53643.0,53642.0,2.08039939]
[1725649272601,0.00082,53652.0,53651.0,1.489647]
[1725649272829,0.00082,53652.0,53651.0,1.5609775]
[1725649273079,0.00082,53652.0,53651.0,1.1981985]
[1725649273319,0.00082,53652.0,53651.0,0.8254195]
[1725649273594,0.00082,53652.0,53651.0,0.6160305]
[1725649273805,0.00082,53652.0,53651.0,1.1981985]
[1725649274052,0.000815,53662.0,53651.0,0.6390305]
[1725649274270,0.000815,53662.0,53652.0,1.92477565]
[1725649275481,0.000815,53662.0,53655.0,0.945877]
[1725649275721,0.000815,53662.0,53655.0,2.06278039]
[1725649276169,0.000815,53662.0,53655.0,2.06478039]
[1725649276403,0.000815,53662.0,53655.0,1.505277]
[1725649276644,0.000815,53662.0,53655.0,1.545567]
[1725649276885,0.000815,53662.0,53655.0,1.918318]
[1725649277309,0.000815,53662.0,53655.0,1.559567]
[1725649278607,0.00082,53674.0,53673.0,0.196313]
[1725649278812,0.00082,53674.0,53673.0,0.2161443]
[1725649279028,0.00082,53674.0,53673.0,0.0548313]
[1725649279250,0.00082,53674.0,53673.0,0.012]
[1725649279526,0.00082,53674.0,53673.0,0.01]
[1725649279762,0.187129,53674.0,53673.0,0.01]
[1725649279989,0.559748,53674.0,53673.0,0.01]
[1725649280234,0.00014,53687.0,53673.0,0.01]
[1725649280235,0.00014,53687.0,53686.0,0.01]
[1725649280447,0.00014,53687.0,53686.0,1.69619998]
[1725649280654,0.00014,53687.0,53686.0,1.87745907]
[1725649281296,0.00014,53687.0,53686.0,2.62707901]
[1725649281509,0.00014,53687.0,53686.0,2.63707901]
[1725649281721,0.00014,53687.0,53686.0,2.63907901]
[1725649282195,0.55430836,53707.0,53689.0,1.852002]
[1725649282432,0.55430836,53707.0,53689.0,2.52966312]
[1725649282637,0.55430836,53735.0,53709.0,0.198188]
[1725649282638,0.905847,53728.0,53709.0,0.198188]
[1725649282857,0.905847,53728.0,53709.0,0.035]
[1725649282858,0.186154,53719.0,53709.0,0.035]
[1725649283081,0.558435,53722.0,53709.0,0.221188]
[1725649283318,0.55430836,53735.0,53709.0,1.71470965]
[1725649283319,0.337302,53734.0,53709.0,1.71470965]
[1725649283539,0.523408,53734.0,53709.0,1.75320465]
[1725649283745,0.1512,53734.0,53709.0,2.31033404]
[1725649283961,0.55430836,53735.0,53709.0,2.31033404]
[1725649283962,0.55430836,53735.0,53734.0,0.012]
[1725649284238,0.55430836,53735.0,53725.0,0.37226]
[1725649284239,0.55430836,53735.0,53722.0,0.01]
[1725649284504,0.37266755,53740.0,53729.0,0.01]
[1725649284757,0.55780264,53743.0,53729.0,0.01]
[1725649284758,0.5312,53743.0,53729.0,0.01]
[1725649284998,0.5312,53743.0,53733.0,0.01]
[1725649285237,0.5312,53743.0,53734.0,0.01]
[1725649285465,0.186098,53735.0,53734.0,0.01]
[1725649285691,0.5312,53743.0,53734.0,0.01]
[1725649285960,0.5312,53743.0,53731.0,0.01]
[1725649285961,0.186108,53732.0,53731.0,0.01]
[1725649286212,0.37216,53741.0,53724.0,0.01]
[1725649286213,0.186129,53726.0,53724.0,0.01]
[1725649286446,0.186129,53726.0,53720.0,0.002]
[1725649286447,0.186129,53726.0,53709.0,0.040495]
[1725649286448,0.152,53725.0,53709.0,0.040495]
[1725649286692,0.152,53725.0,53699.0,0.01]
[1725649286693,0.15498649,53725.0,53699.0,0.01]
[1725649286944,0.558711,53695.0,53694.0,0.55430836]
[1725649287173,0.152,53715.0,53697.0,0.01]
[1725649287174,0.186225,53699.0,53697.0,0.01]
[1725649287411,0.186225,53699.0,53698.0,0.01]
[1725649287412,0.186223,53699.0,53698.0,0.01]
[1725649287639,0.286223,53699.0,53698.0,0.01]
[1725649287937,0.09901237,53699.0,53698.0,0.01]
[1725649288194,0.65768137,53699.0,53698.0,0.01]
[1725649288451,0.65768137,53699.0,53687.0,0.01]
[1725649288452,0.37249,53693.0,53687.0,0.01]
[1725649288720,0.09901237,53699.0,53695.0,0.01]
[1725649288948,0.09901237,53699.0,53691.0,0.002]
[1725649288949,0.3788,53704.0,53692.0,0.002]
[1725649289198,0.3788,53704.0,53694.0,0.01]
[1725649289199,0.558711,53695.0,53694.0,0.01]
[1725649289462,0.372441,53700.0,53694.0,0.01]
[1725649289707,0.3788,53704.0,53698.0,0.01]
[1725649289708,0.372446,53699.0,53698.0,0.01]
[1725649289958,0.3788,53704.0,53688.0,0.01]
[1725649289959,0.372497,53692.0,53688.0,0.01]
[1725649290198,0.1,53703.0,53687.0,0.006]
[1725649290199,0.186261,53688.0,53687.0,0.006]
[1725649290445,0.186301,53677.0,53672.0,0.002]
[1725649290675,0.372559,53683.0,53678.0,0.002]
[1725649290934,0.186292,53679.0,53678.0,0.002]
[1725649291230,0.558888,53678.0,53677.0,0.01]
[1725649291517,0.558888,53678.0,53675.0,0.002]
[1725649291518,0.558888,53678.0,53667.0,0.01]
[1725649291519,0.1,53678.0,53667.0,0.01]
[1725649291748,0.4545,53677.0,53667.0,0.01]
[1725649292010,0.4545,53677.0,53661.0,0.002]
[1725649292011,0.1,53677.0,53670.0,0.19632]
[1725649292310,0.095,53677.0,53676.0,0.01]
[1725649292519,0.372534,53687.0,53680.0,0.01]
[1725649292735,0.552559,53689.0,53683.0,0.01]
[1725649292951,0.70630836,53695.0,53684.0,0.01]
[1725649293159,0.37266755,53691.0,53687.0,0.002]
[1725649293381,0.37266755,53691.0,53689.0,0.002]
[1725649293652,0.37266755,53696.0,53689.0,0.012]
[1725649293864,0.186244,53693.0,53689.0,0.04925]
[1725649294082,0.372481,53694.0,53689.0,0.04925]
[1725649294294,0.37266755,53696.0,53692.0,0.002]
[1725649294542,0.186242,53694.0,53692.0,0.002]
[1725649294750,0.186242,53694.0,53693.0,0.002]
[1725649294968,0.186254,53690.0,53689.0,0.04925]
[1725649295190,0.186248,53692.0,53690.0,0.01]
[1725649295426,0.472481,53694.0,53690.0,0.01]
[1725649295427,0.1,53691.0,53690.0,0.01]
[1725649296143,0.01,53717.0,53685.0,0.00372499]
[1725649296144,0.186222,53700.0,53696.0,0.002]
[1725649296372,0.382285,53723.0,53701.0,0.002]
[1725649296373,0.186205,53704.0,53701.0,0.002]
[1725649296604,0.152,53709.0,53698.0,0.01]
[1725649296605,0.186223,53699.0,53698.0,0.01]
[1725649296817,0.186223,53699.0,53698.0,0.03306]
[1725649297047,0.372419,53703.0,53699.0,0.002]
[1725649297302,0.372411,53704.0,53703.0,0.002]
[1725649297537,0.186223,53699.0,53698.0,0.03106]
[1725649297779,0.152,53709.0,53698.0,0.01]
[1725649297780,0.1,53704.0,53698.0,0.01]
[1725649298009,0.186223,53699.0,53698.0,0.01]